bitfinex/quotes_SOLUSD_20241101
["timestamp","ask_amount","ask_price","bid_price","bid_amount"]
[1730471464646,48.67759878,173.49,173.44,22.91359878]
[1730471464854,22.91359878,173.48,173.43,22.91359878]
[1730471465365,48.67759878,173.49,173.44,22.91359878]
[1730471465552,25.764,173.49,173.45,22.91359878]
[1730471465757,48.67759878,173.49,173.44,22.91359878]
[1730471466563,25.764,173.49,173.45,22.91359878]
[1730471466771,25.764,173.49,173.46,22.91359878]
[1730471467071,20.0,173.5,173.48,22.91359878]
[1730471467481,20.0,173.5,173.47,22.91359878]
[1730471467869,5.7636,173.51,173.47,22.91359878]
[1730471468371,5.7636,173.51,173.48,22.91359878]
[1730471468680,5.7626,173.53,173.49,14.36201894]
[1730471468990,5.7626,173.53,173.48,14.36201894]
[1730471469156,14.36201894,173.52,173.47,14.36201894]
[1730471469556,20.12461894,173.53,173.48,14.36201894]
[1730471470563,20.0,173.53,173.48,14.36201894]
[1730471470885,42.97927699,173.53,173.44,14.4137]
[1730471471061,22.97927699,173.5,173.45,22.97927699]
[1730471471376,22.97927699,173.49,173.44,22.97927699]
[1730471471560,22.97927699,173.48,173.42,22.97927699]
[1730471471762,22.97927699,173.46,173.41,22.97927699]
[1730471471974,22.97927699,173.45,173.4,22.97927699]
[1730471472183,20.0,173.43,173.39,22.97927699]
[1730471472387,42.97927699,173.43,173.38,39.64417699]
[1730471472559,20.0,173.43,173.4,22.97927699]
[1730471472882,5.7659,173.44,173.42,22.97927699]
[1730471473775,5.7659,173.44,173.41,22.97927699]
[1730471474074,5.7659,173.44,173.4,22.97927699]
[1730471474779,5.7659,173.44,173.43,22.97927699]
[1730471474986,5.7659,173.44,173.42,22.97927699]
[1730471475372,20.25098,173.47,173.43,22.97927699]
[1730471475564,20.0,173.47,173.44,22.97927699]
[1730471476077,20.174,173.49,173.45,22.97927699]
[1730471476284,43.15327699,173.49,173.44,22.97927699]
[1730471476579,43.15327699,173.49,173.39,20.1853]
[1730471476580,5.764,173.49,173.45,22.97927699]
[1730471477087,5.764,173.49,173.47,22.97927699]
[1730471477385,5.764,173.49,173.46,22.97927699]
[1730471477772,20.0,173.5,173.48,22.97927699]
[1730471478373,20.0,173.5,173.49,22.97927699]
[1730471478575,5.7633,173.51,173.49,22.97927699]
[1730471478764,5.7633,173.51,173.5,22.97927699]
[1730471478960,5.7633,173.51,173.49,22.97927699]
[1730471479675,14.4077,173.52,173.49,22.97927699]
[1730471480188,14.4077,173.52,173.43,22.97927699]
[1730471480189,14.4077,173.52,173.48,22.97927699]
[1730471480492,20.0,173.51,173.49,22.97927699]
[1730471480791,20.0,173.51,173.5,22.97927699]
[1730471481165,25.7633,173.51,173.49,22.97927699]
[1730471481464,0.25098,173.5,173.46,22.97927699]
[1730471482100,0.25098,173.5,173.47,22.97927699]
[1730471482987,40.30179,173.47,173.43,22.97927699]
[1730471483187,63.28106699,173.47,173.42,22.97927699]
[1730471483375,23.10476699,173.46,173.41,22.97927699]
[1730471483570,20.0,173.45,173.41,22.97927699]
[1730471484067,0.25098,173.44,173.41,22.97927699]
[1730471484883,0.25098,173.44,173.42,22.97927699]
[1730471485099,5.7653,173.45,173.43,22.97927699]
[1730471485269,20.0,173.44,173.38,20.1866]
[1730471485873,20.0,173.44,173.43,22.97927699]
[1730471486276,20.0,173.44,173.41,22.97927699]
[1730471486781,20.0,173.44,173.4,22.97927699]
[1730471488596,5.766,173.43,173.4,22.97927699]
[1730471488795,5.766,173.43,173.41,22.97927699]
[1730471488977,25.766,173.43,173.42,22.97927699]
[1730471489176,5.766,173.43,173.42,22.97927699]
[1730471489378,5.7646,173.47,173.42,22.97927699]
[1730471489592,14.4085,173.51,173.46,22.97927699]
[1730471489893,14.4085,173.51,173.49,22.97927699]
[1730471490094,14.4085,173.51,173.48,22.97927699]
[1730471490774,14.4085,173.51,173.46,14.3657643]
[1730471490775,0.12549,173.5,173.46,14.3657643]
[1730471491278,30.12549,173.5,173.46,14.3657643]
[1730471491589,14.3657643,173.49,173.44,14.3657643]
[1730471491788,44.3657643,173.5,173.45,14.3657643]
[1730471491968,20.25098,173.49,173.45,14.3657643]
[1730471492173,34.6167443,173.49,173.44,14.3657643]
[1730471492583,20.0,173.47,173.43,14.3657643]
[1730471492786,20.25098,173.45,173.41,22.99868768]
[1730471493880,43.24966768,173.45,173.4,22.99868768]
[1730471494281,20.25098,173.45,173.42,22.99868768]
[1730471494487,20.25098,173.45,173.41,22.99868768]
[1730471494793,43.17618768,173.46,173.35,20.9427]
[1730471494794,20.0,173.41,173.36,22.99868768]
[1730471494991,20.0,173.39,173.35,22.99868768]
[1730471496382,5.7676,173.38,173.35,22.99868768]
[1730471497989,5.7676,173.38,173.36,22.99868768]
[1730471498696,5.7676,173.38,173.35,21.49868768]
[1730471498994,44.027864,173.37,173.33,22.99868768]
[1730471499294,20.0,173.35,173.31,51.79801996]
[1730471499797,0.25098,173.36,173.34,22.99868768]
[1730471500099,20.0,173.37,173.34,22.99868768]
[1730471500794,0.25098,173.36,173.32,22.99868768]
[1730471500982,6.01928,173.36,173.32,22.99868768]
[1730471501182,6.01928,173.36,173.33,22.99868768]
[1730471502591,6.01928,173.36,173.32,22.99868768]
[1730471503099,6.01928,173.36,173.33,22.99868768]
[1730471503989,6.01928,173.36,173.32,22.99868768]
[1730471504181,20.0,173.35,173.34,22.99868768]
[1730471504500,6.01928,173.36,173.33,22.99868768]
[1730471504694,20.0,173.35,173.33,22.99868768]
[1730471505087,5.769,173.34,173.33,22.99868768]
[1730471506195,20.25098,173.36,173.33,22.99868768]
[1730471506502,25.7683,173.36,173.35,22.99868768]
[1730471506704,5.7663,173.42,173.35,22.99868768]
[1730471506902,5.7663,173.42,173.41,22.99868768]
[1730471507994,5.765,173.46,173.41,22.99868768]
[1730471508195,5.765,173.46,173.43,22.99868768]
[1730471508595,28.76368768,173.46,173.41,22.99868768]
[1730471508792,22.99868768,173.43,173.39,22.99868768]
[1730471509002,22.99868768,173.44,173.39,22.99868768]
[1730471509303,24.027864,173.43,173.39,22.99868768]
[1730471509503,20.0,173.42,173.39,22.99868768]
[1730471509699,0.25098,173.41,173.39,22.99868768]
[1730471510290,5.767,173.4,173.38,22.99868768]
[1730471510496,0.25098,173.38,173.31,51.47205563]
[1730471510696,22.99868768,173.35,173.31,45.46173228]
[1730471511006,22.99868768,173.36,173.31,68.46041996]
[1730471511194,20.0,173.35,173.31,68.46041996]
[1730471511391,20.0,173.39,173.34,22.99868768]
[1730471511594,5.767,173.4,173.36,22.99868768]
[1730471511794,28.76568768,173.4,173.35,22.99868768]
[1730471512403,22.99868768,173.36,173.31,45.46173228]
[1730471512592,22.99868768,173.34,173.31,45.46173228]
[1730471512794,14.39256318,173.32,173.31,45.46173228]
[1730471513917,14.39256318,173.32,173.31,28.79933228]
[1730471514406,14.39256318,173.32,173.27,5.1099296]
[1730471514716,23.03662349,173.3,173.27,5.1099296]
[1730471515088,20.188,173.37,173.27,5.1099296]
[1730471515307,23.03662349,173.3,173.27,5.1099296]
[1730471515602,23.03662349,173.28,173.22,44.05572349]
[1730471515800,23.03662349,173.26,173.22,15.2465]
[1730471516000,23.03662349,173.24,173.22,15.2465]
[1730471516612,23.03662349,173.23,173.22,15.2465]
[1730471516914,23.03662349,173.24,173.22,15.2465]
[1730471517203,23.03662349,173.23,173.22,15.2465]
[1730471519008,23.03662349,173.23,173.19,6.2096]
[1730471519186,23.03662349,173.21,173.19,6.2096]
[1730471519597,23.03662349,173.22,173.19,6.2096]
[1730471519796,23.03662349,173.2,173.19,6.2096]
[1730471520397,28.81022349,173.2,173.18,16.457]
[1730471520597,23.03662349,173.19,173.18,16.457]
[1730471521185,20.0,173.22,173.18,39.49362349]
[1730471521387,23.03662349,173.25,173.2,23.03662349]
[1730471521603,23.03662349,173.26,173.21,23.03662349]
[1730471521788,23.03662349,173.27,173.22,23.03662349]
[1730471521994,23.03662349,173.25,173.2,23.03662349]
[1730471522207,23.03662349,173.26,173.21,23.03662349]
[1730471522503,23.03662349,173.23,173.18,39.49362349]
[1730471522716,23.03662349,173.34,173.18,36.667]
[1730471522890,23.03662349,173.24,173.18,36.667]
[1730471523094,23.03662349,173.24,173.19,23.03662349]
[1730471523413,23.03662349,173.22,173.18,16.457]
[1730471523588,23.03662349,173.21,173.18,16.457]
[1730471523788,23.03662349,173.21,173.16,23.03662349]
[1730471524507,23.03662349,173.23,173.18,23.03662349]
[1730471525109,20.0,173.23,173.19,23.03662349]
[1730471525821,23.03662349,173.22,173.17,23.03662349]
[1730471526993,23.03662349,173.23,173.18,23.03662349]
[1730471527188,20.0,173.23,173.2,23.03662349]
[1730471527385,20.0,173.23,173.19,23.03662349]
[1730471527614,43.03662349,173.23,173.18,23.03662349]
[1730471528110,20.0,173.23,173.19,23.03662349]
[1730471528411,43.03662349,173.23,173.18,23.03662349]
[1730471528992,23.03662349,173.22,173.17,23.03662349]
[1730471529192,23.03662349,173.19,173.14,44.97825309]
[1730471529397,23.03662349,173.18,173.14,21.9416296]
[1730471529602,23.03662349,173.19,173.14,44.97825309]
[1730471530903,23.03662349,173.17,173.14,15.6570296]
[1730471531301,23.03662349,173.18,173.14,15.6570296]
[1730471531503,23.03662349,173.17,173.14,15.6570296]
[1730471531809,23.03662349,173.18,173.14,15.6570296]
[1730471532309,23.03662349,173.18,173.14,0.5983296]
[1730471532700,23.03662349,173.19,173.14,23.63495309]
[1730471532917,23.03662349,173.18,173.14,0.5983296]
[1730471533410,0.12549,173.21,173.17,23.03662349]
[1730471533708,43.16211349,173.21,173.16,23.03662349]
[1730471534910,14.54097094,173.21,173.16,14.41548094]
[1730471535212,20.0,173.2,173.16,14.41548094]
[1730471535418,20.0,173.2,173.17,14.41548094]
[1730471535792,34.54097094,173.21,173.16,14.41548094]
[1730471536913,20.12549,173.21,173.17,14.41548094]
[1730471537109,20.0,173.21,173.17,14.41548094]
[1730471537821,20.0,173.21,173.14,15.0374296]
[1730471537822,0.12549,173.2,173.16,14.41548094]
[1730471538394,20.0,173.19,173.15,14.41548094]
[1730471538613,14.41548094,173.18,173.14,15.01381054]
[1730471538812,34.41548094,173.17,173.14,0.5983296]
[1730471539012,14.54097094,173.16,173.14,0.5983296]
[1730471539896,20.0,173.15,173.14,0.5983296]
[1730471540208,34.41548094,173.15,173.14,0.5983296]
[1730471540421,58.44334494,173.15,173.14,0.5983296]
[1730471541303,34.54097094,173.15,173.14,0.5983296]
[1730471541503,20.0,173.15,173.14,0.5983296]
[1730471541714,34.41548094,173.15,173.14,0.5983296]
[1730471542305,58.44334494,173.15,173.14,0.5983296]
[1730471542519,34.66646094,173.15,173.14,0.5983296]
[1730471543011,20.0,173.15,173.14,0.5983296]
[1730471543229,34.54097094,173.15,173.14,0.5983296]
[1730471544403,58.44334494,173.15,173.14,0.5983296]
[1730471549822,20.0,173.15,173.14,0.5983296]
[1730471550008,34.41548094,173.15,173.14,0.5983296]
[1730471550822,20.0,173.15,173.14,0.5983296]
[1730471551024,14.41548094,173.18,173.14,0.5983296]
[1730471552120,21.2376073,173.2,173.15,14.41548094]
[1730471552322,14.41548094,173.18,173.14,0.5983296]
[1730471552821,14.41548094,173.2,173.15,14.41548094]
[1730471553031,14.41548094,173.19,173.14,15.01381054]
[1730471553553,14.41548094,173.18,173.14,0.5983296]
[1730471553709,20.0,173.17,173.14,15.01381054]
[1730471554107,20.0,173.19,173.16,14.41548094]
[1730471554420,0.12549,173.21,173.17,14.41548094]
[1730471554726,14.54097094,173.21,173.16,14.41548094]
[1730471555121,23.71013545,173.26,173.14,15.01381054]
[1730471555122,14.41548094,173.19,173.14,15.01381054]
[1730471555633,20.12549,173.18,173.15,14.41548094]
[1730471555924,0.12549,173.18,173.14,15.01381054]
[1730471556514,14.54097094,173.18,173.14,0.5983296]
[1730471556719,20.0,173.17,173.14,15.01381054]
[1730471557632,20.0,173.16,173.14,0.5983296]
[1730471557925,20.0,173.15,173.14,0.5983296]
[1730471558310,34.41548094,173.15,173.14,0.5983296]
[1730471558632,20.0,173.15,173.14,0.5983296]
[1730471559130,34.54097094,173.15,173.14,0.5983296]
[1730471559432,34.66646094,173.15,173.14,0.5983296]
[1730471559823,58.44334494,173.15,173.14,0.5983296]
[1730471560021,59.96352336,173.15,173.14,0.5983296]
[1730471560622,62.68570116,173.15,173.14,0.5983296]
[1730471560927,64.2043628,173.15,173.14,0.5983296]
[1730471561120,66.9265406,173.15,173.14,0.5983296]
[1730471561438,96.9265406,173.15,173.14,0.5983296]
[1730471562011,23.776884,173.12,173.02,20.82108094]
[1730471562213,20.25098,173.02,172.97,15.01381054]
[1730471562426,34.54097094,173.02,172.97,15.01381054]
[1730471563412,14.41548094,173.01,172.97,0.5983296]
[1730471564013,34.54097094,173.02,172.97,15.01381054]
[1730471564215,14.41548094,173.01,172.97,0.5983296]
[1730471564416,14.41548094,172.99,172.97,0.5983296]
[1730471566247,34.41548094,172.98,172.97,0.5983296]
[1730471566736,49.08194188,172.98,172.97,0.5983296]
[1730471567318,34.41548094,172.98,172.97,0.5983296]
[1730471567533,14.41548094,173.0,172.97,0.5983296]
[1730471567735,34.41548094,172.99,172.97,0.5983296]
[1730471568133,14.41548094,172.98,172.97,0.5983296]
[1730471568437,48.83096188,172.98,172.97,0.5983296]
[1730471568745,34.41548094,172.98,172.97,0.5983296]
[1730471568918,48.83096188,172.98,172.97,0.5983296]
[1730471569120,50.6021203,172.98,172.97,0.5983296]
[1730471569426,55.69185701,172.98,172.97,0.5983296]
[1730471570041,0.25098,172.96,172.88,21.7783]
[1730471570221,14.41548094,172.91,172.88,15.4921]
[1730471570423,14.41548094,172.92,172.88,15.4921]
[1730471571128,20.0,172.93,172.89,14.41548094]
[1730471571341,14.41548094,172.95,172.9,14.41548094]
[1730471571524,14.41548094,172.94,172.89,14.41548094]
[1730471571724,14.41548094,172.95,172.9,14.41548094]
[1730471572337,14.41548094,172.96,172.91,14.41548094]
[1730471572535,14.41548094,172.97,172.92,20.75448094]
[1730471572739,14.41548094,172.98,172.93,38.19236494]
[1730471572936,14.41548094,172.95,172.92,6.339]
[1730471573320,14.41548094,172.94,172.92,6.339]
[1730471574241,14.41548094,172.93,172.88,36.24658094]
[1730471574738,1.7091379,173.01,172.88,36.24658094]
[1730471574739,14.41548094,172.94,172.89,14.41548094]
[1730471574943,20.0,172.95,172.92,14.41548094]
[1730471575323,20.0,172.95,172.91,14.41548094]
[1730471575935,14.41548094,172.92,172.88,21.8311]
[1730471576119,14.41548094,172.9,172.88,21.8311]
[1730471576741,14.41548094,172.91,172.88,21.8311]
[1730471576921,14.41548094,172.92,172.88,21.8311]
[1730471577122,20.0,172.91,172.88,36.24658094]
[1730471577341,14.41548094,172.9,172.88,21.8311]
[1730471577649,20.0,172.91,172.89,23.776884]
[1730471577940,20.0,172.91,172.8,15.01381054]
[1730471578245,14.41548094,172.87,172.82,14.41548094]
[1730471578432,14.41548094,172.88,172.82,14.41548094]
[1730471578635,14.41548094,172.88,172.83,14.41548094]
[1730471578836,20.0,172.87,172.82,14.41548094]
[1730471579038,14.41548094,172.86,172.81,14.41548094]
[1730471579236,20.0,172.91,172.8,0.5983296]
[1730471579237,14.41548094,172.87,172.82,14.41548094]
[1730471579438,14.41548094,172.87,172.82,13.91548094]
[1730471579629,14.41548094,172.88,172.83,14.41548094]
[1730471579936,14.41548094,172.94,172.88,15.8617]
[1730471580139,14.41548094,172.94,172.89,14.41548094]
[1730471580318,14.41548094,172.91,172.88,15.8617]
[1730471580759,14.41548094,172.89,172.83,22.8009]
[1730471580921,14.41548094,172.88,172.83,37.21638094]
[1730471581437,20.0,172.87,172.83,37.21638094]
[1730471581827,14.41548094,172.86,172.83,22.8009]
[1730471582139,14.41548094,172.87,172.84,23.776884]
[1730471582342,14.41548094,172.85,172.83,22.8009]
[1730471582528,14.41548094,172.86,172.83,22.8009]
[1730471583035,34.41548094,172.84,172.8,0.5983296]
[1730471583338,14.41548094,172.81,172.8,0.5983296]
[1730471583517,20.0,172.84,172.8,0.5983296]
[1730471583518,14.41548094,172.83,172.8,0.5983296]
[1730471584139,20.0,172.82,172.8,0.5983296]
[1730471584328,14.41548094,172.81,172.8,0.5983296]
[1730471585444,20.0,172.82,172.8,0.5983296]
[1730471586040,34.41548094,172.82,172.8,0.5983296]
[1730471586237,14.41548094,172.86,172.81,38.19236494]
[1730471586427,20.0,172.86,172.83,23.776884]
[1730471586626,14.41548094,172.87,172.83,23.776884]
[1730471586844,14.41548094,172.85,172.81,23.902374]
[1730471587031,14.41548094,172.85,172.81,23.776884]
[1730471587351,14.41548094,172.88,172.83,14.41548094]
[1730471587527,14.41548094,172.87,172.85,23.776884]
[1730471587721,14.41548094,172.88,172.85,23.776884]
[1730471587928,14.41548094,172.9,172.85,14.41548094]
[1730471588237,14.41548094,172.91,172.86,38.19236494]
[1730471588428,14.41548094,172.9,172.85,38.19236494]
[1730471588624,14.41548094,172.91,172.86,14.41548094]
[1730471588946,14.41548094,172.92,172.88,23.776884]
[1730471589741,14.41548094,172.94,172.89,14.41548094]
[1730471589952,14.41548094,172.95,172.9,38.19236494]
[1730471590445,14.41548094,172.93,172.91,23.776884]
[1730471590648,14.41548094,172.92,172.89,23.776884]
[1730471590841,14.41548094,172.92,172.88,23.776884]
[1730471591147,14.41548094,172.94,172.9,23.776884]
[1730471591532,34.41548094,172.93,172.9,23.776884]
[1730471591728,34.41548094,172.93,172.89,23.776884]
[1730471592132,14.41548094,172.92,172.88,23.776884]
[1730471592328,34.41548094,172.93,172.88,38.19236494]
[1730471592559,20.0,172.93,172.89,14.41548094]
[1730471592851,14.41548094,172.98,172.93,23.776884]
[1730471593145,14.41548094,172.98,172.93,38.19236494]
[1730471593322,14.41548094,172.95,172.93,23.776884]
[1730471593527,14.41548094,172.96,172.92,23.776884]
[1730471593740,14.41548094,172.97,172.92,38.19236494]
[1730471594154,20.0,172.96,172.92,38.19236494]
[1730471594840,14.41548094,172.99,172.94,14.41548094]
[1730471595041,16.87525795,173.03,172.96,14.41548094]
[1730471595042,14.41548094,173.01,172.96,14.41548094]
[1730471595232,16.87525795,173.03,172.97,23.776884]
[1730471595233,14.41548094,172.99,172.97,23.776884]
[1730471595545,14.41548094,173.0,172.96,23.776884]
[1730471595745,14.41548094,173.0,172.95,14.41548094]
[1730471595746,14.41548094,172.97,172.9,14.41548094]
[1730471595940,14.41548094,172.92,172.88,6.6065]
[1730471596341,14.41548094,172.93,172.89,0.12549]
[1730471596754,14.41548094,172.93,172.88,21.02198094]
[1730471597130,14.41548094,172.92,172.88,6.6065]
[1730471597745,34.41548094,172.91,172.88,6.6065]
[1730471597929,20.0,172.91,172.88,6.6065]
[1730471598131,20.0,172.91,172.89,23.776884]
[1730471598531,20.0,172.89,172.83,20.55188094]
[1730471598743,14.41548094,172.88,172.83,20.55188094]
[1730471598948,14.41548094,172.87,172.83,6.1364]
[1730471599429,14.41548094,172.86,172.83,6.1364]
[1730471599637,14.41548094,172.86,172.81,14.41548094]
[1730471599835,14.41548094,172.87,172.82,14.41548094]
[1730471600137,14.41548094,172.86,172.81,14.41548094]
[1730471600539,20.0,172.85,172.81,14.41548094]
[1730471600726,14.41548094,172.83,172.81,23.776884]
[1730471600929,14.41548094,172.82,172.8,0.5983296]
[1730471601159,14.41548094,172.81,172.8,0.5983296]
[1730471601646,14.41548094,172.83,172.8,0.5983296]
[1730471602031,20.0,172.85,172.8,0.5983296]
[1730471602032,20.0,172.85,172.81,14.41548094]
[1730471602232,20.0,172.85,172.8,15.01381054]
[1730471602233,34.41548094,172.85,172.8,15.01381054]
[1730471602435,14.41548094,172.84,172.8,0.5983296]
[1730471602752,23.16115543,172.82,172.8,0.5983296]
[1730471602957,23.16115543,172.81,172.8,0.5983296]
[1730471603338,23.16115543,172.83,172.8,0.5983296]
[1730471603858,43.16115543,172.81,172.8,0.5983296]
[1730471604041,20.0,172.81,172.8,0.5983296]
[1730471604235,43.16115543,172.81,172.8,24.3752136]
[1730471605055,20.0,172.81,172.8,24.3752136]
[1730471605436,20.0,172.84,172.81,23.776884]
[1730471605640,23.16115543,172.85,172.81,23.776884]
[1730471605859,23.16115543,172.86,172.82,0.12549]
[1730471606241,23.16115543,172.85,172.82,0.12549]
[1730471606454,23.16115543,172.87,172.82,23.28664543]
[1730471606661,23.16115543,172.87,172.82,0.12549]
[1730471607160,23.16115543,172.88,172.85,23.776884]
[1730471607546,23.16115543,172.88,172.84,23.902374]
[1730471607951,23.16115543,172.87,172.84,23.902374]
[1730471608139,23.16115543,172.87,172.83,0.12549]
[1730471608539,23.16115543,172.87,172.83,0.25098]
[1730471609145,23.16115543,172.88,172.84,0.12549]
[1730471609350,20.0,172.87,172.84,0.12549]
[1730471609543,20.0,172.87,172.84,23.28664543]
[1730471609860,20.0,172.87,172.83,23.41213543]
[1730471610358,23.16115543,172.86,172.83,0.25098]
[1730471611157,43.16115543,172.87,172.83,0.25098]
[1730471611354,43.16115543,172.87,172.8,0.5983296]
[1730471611355,23.16115543,172.84,172.8,0.5983296]
[1730471611543,23.16115543,172.83,172.8,0.5983296]
[1730471611739,43.16115543,172.81,172.8,0.5983296]
[1730471613260,66.32231086,172.81,172.8,0.5983296]
[1730471614541,20.0,172.8,172.72,0.32977829]
[1730471614753,23.16115543,172.73,172.72,0.32977829]
[1730471615154,43.16115543,172.73,172.72,0.32977829]
[1730471618245,66.32231086,172.73,172.72,0.32977829]
[1730471618451,20.0,172.72,172.63,0.5983296]
[1730471618663,23.16115543,172.65,172.63,0.5983296]
[1730471619157,23.16115543,172.66,172.63,0.5983296]
[1730471619363,23.16115543,172.64,172.63,0.5983296]
[1730471619860,23.16115543,172.65,172.63,0.5983296]
[1730471620046,23.16115543,172.64,172.63,0.5983296]
[1730471622254,43.16115543,172.64,172.63,0.5983296]
[1730471622450,23.16115543,172.64,172.63,0.5983296]
[1730471622648,43.16115543,172.64,172.63,0.5983296]
[1730471622848,23.16115543,172.64,172.63,0.5983296]
[1730471623038,23.16115543,172.65,172.63,0.5983296]
[1730471623243,23.16115543,172.66,172.63,0.5983296]
[1730471623442,23.16115543,172.65,172.63,0.5983296]
[1730471624359,23.16115543,172.66,172.63,0.5983296]
[1730471625458,23.16115543,172.65,172.63,0.5983296]
[1730471625858,23.16115543,172.66,172.63,0.5983296]
[1730471626058,23.16115543,172.65,172.63,0.5983296]
[1730471626357,23.16115543,172.66,172.63,0.5983296]
[1730471626945,23.16115543,172.65,172.63,0.5983296]
[1730471627262,23.16115543,172.64,172.63,0.5983296]
[1730471627560,23.16115543,172.66,172.63,0.5983296]
[1730471627766,23.16115543,172.65,172.63,0.5983296]
[1730471628150,23.16115543,172.67,172.63,0.5983296]
[1730471628587,14.5041004,172.69,172.65,14.5041004]
[1730471628859,14.5041004,172.68,172.65,23.776884]
[1730471630467,14.5041004,172.69,172.65,23.776884]
[1730471630861,14.5041004,172.68,172.64,23.902374]
[1730471631368,14.5041004,172.67,172.64,23.902374]
[1730471631952,14.5041004,172.65,172.63,0.5983296]
[1730471632152,14.5041004,172.64,172.63,0.5983296]
[1730471633267,14.5041004,172.64,172.63,24.3752136]
[1730471633473,14.5041004,172.71,172.64,23.776884]
[1730471633474,14.5041004,172.66,172.64,23.776884]
[1730471633763,14.5041004,172.67,172.64,23.776884]
[1730471633962,20.0,172.67,172.64,23.776884]
[1730471634177,14.5041004,172.68,172.64,23.776884]
[1730471634849,14.5041004,172.67,172.64,23.776884]
[1730471636086,14.5041004,172.68,172.64,23.776884]
[1730471636459,14.5041004,172.72,172.68,23.776884]
[1730471637656,14.5041004,172.69,172.68,23.776884]
[1730471638752,14.5041004,172.7,172.68,23.776884]
[1730471639365,10.83953715,172.77,172.67,23.776884]
[1730471639366,14.5041004,172.71,172.67,23.776884]
[1730471639568,20.0,172.7,172.67,14.5041004]
[1730471639868,14.5041004,172.72,172.68,23.776884]
[1730471640069,14.5041004,172.72,172.68,38.2809844]
[1730471640277,14.5041004,172.72,172.69,0.12549]
[1730471640474,14.5041004,172.72,172.68,23.776884]
[1730471640691,14.5041004,172.71,172.67,23.776884]
[1730471641189,14.5041004,172.72,172.68,14.5041004]
[1730471641475,14.5041004,172.72,172.69,23.776884]
[1730471641659,14.5041004,172.71,172.67,23.902374]
[1730471641855,14.5041004,172.73,172.69,23.776884]
[1730471642057,14.5041004,172.75,172.7,14.5041004]
[1730471642256,20.0,172.74,172.71,23.776884]
[1730471643472,14.5041004,172.76,172.73,23.776884]
[1730471643659,16.0311,172.82,172.73,23.776884]
[1730471643660,14.5041004,172.77,172.73,23.776884]
[1730471643862,14.5041004,172.78,172.73,38.2809844]
[1730471644070,14.5041004,172.77,172.73,23.776884]
[1730471644377,14.5041004,172.77,172.73,38.2809844]
[1730471645355,14.5041004,172.77,172.73,23.776884]
[1730471646264,14.5041004,172.78,172.73,38.2809844]
[1730471646464,20.0,172.77,172.74,14.5041004]
[1730471646780,20.0,172.77,172.75,23.776884]
[1730471646979,14.5041004,172.79,172.75,38.2809844]
[1730471647175,20.0,172.79,172.77,23.776884]
[1730471647360,14.5041004,172.81,172.77,38.2809844]
[1730471647556,20.0,172.8,172.76,38.2809844]
[1730471647870,14.5041004,172.81,172.76,38.2809844]
[1730471648063,14.5041004,172.82,172.78,23.902374]
[1730471648259,14.5041004,172.85,172.81,14.5041004]
[1730471648460,17.14212806,172.9,172.8,23.776884]
[1730471648461,14.5041004,172.83,172.8,23.776884]
[1730471648879,14.5041004,172.83,172.79,23.902374]
[1730471649182,14.5041004,172.84,172.79,14.6295904]
[1730471649379,14.5041004,172.84,172.8,23.776884]
[1730471649676,20.0,172.83,172.8,38.2809844]
[1730471650058,14.5041004,172.84,172.79,38.4064744]
[1730471650379,14.5041004,172.81,172.79,23.776884]
[1730471651578,14.5041004,172.8,172.79,23.776884]
[1730471651758,14.5041004,172.81,172.78,23.776884]
[1730471651960,14.5041004,172.82,172.78,23.776884]
[1730471652162,27.98166521,172.9,172.81,0.37647]
[1730471652163,14.5041004,172.85,172.81,0.37647]
[1730471652365,14.5041004,172.86,172.81,38.6574544]
[1730471652989,14.5041004,172.87,172.83,23.902374]
[1730471653280,14.5041004,172.88,172.83,38.4064744]
[1730471653471,20.0,172.87,172.84,14.5041004]
[1730471653669,14.5041004,172.91,172.86,14.6295904]
[1730471653869,14.5041004,172.92,172.87,14.5041004]
[1730471654082,14.5041004,172.92,172.89,23.776884]
[1730471654582,14.5041004,172.92,172.88,23.902374]
[1730471654777,14.5041004,172.91,172.88,23.902374]
[1730471654964,25.16210651,172.99,172.88,38.4064744]
[1730471654965,14.5041004,172.93,172.88,38.4064744]
[1730471655165,14.5041004,172.91,172.88,23.902374]
[1730471655365,14.5041004,172.91,172.87,23.776884]
[1730471655587,14.5041004,172.91,172.88,0.12549]
[1730471655765,14.5041004,172.92,172.88,0.12549]
[1730471656268,14.5041004,172.9,172.87,23.776884]
[1730471656481,34.5041004,172.88,172.84,6.6639]
[1730471656783,14.5041004,172.88,172.84,6.6639]
[1730471657001,14.5041004,172.87,172.83,0.12549]